fUSD/lending_fUSD_20260309
["ID","MTS","AMOUNT","RATE_DAILY","PERIOD"]
[408054962,1773079833498,-500.0,0.00016999,2]
[408054963,1773079833508,-500.0,0.00016999,2]
[408054964,1773079833518,-500.0,0.00016999,2]
[408054965,1773079833527,-500.0,0.00016999,2]
[408054966,1773079833537,-500.0,0.00016999,2]
[408054967,1773079833548,-500.0,0.00016999,2]
[408054968,1773079833558,-500.0,0.00016999,2]
[408054969,1773079833567,-500.0,0.00016999,2]
[408054970,1773079833577,-640.69858674,0.00016999,2]
[408054971,1773079833586,-500.0,0.00016999,2]
[408054972,1773079833595,-500.0,0.00016999,2]
[408054973,1773079833606,-500.0,0.00016999,2]
[408054974,1773079833616,-500.0,0.00016999,2]
[408054975,1773079833625,-500.0,0.00016999,2]
[408054976,1773079833635,-500.0,0.00016999,2]
[408054977,1773079833645,-500.0,0.00016999,2]
[408054978,1773079833654,-500.0,0.00016999,2]
[408054979,1773079833663,-500.0,0.00016999,2]
[408054980,1773079833676,-500.0,0.00016999,2]
[408054981,1773079833686,-500.0,0.00016999,2]
[408054982,1773079833698,-500.0,0.00016999,2]
[408054983,1773079833709,-703.12663526,0.00016999,2]
[408054984,1773079833719,-703.12663526,0.00016999,2]
[408054985,1773079833730,-703.12663526,0.00016999,2]
[408054986,1773079833741,-703.12663526,0.00016999,2]
[408054987,1773079833752,-703.12663526,0.00016999,2]
[408054988,1773079833762,-703.12663526,0.00016999,2]
[408054989,1773079833772,-703.12663526,0.00016999,2]
[408054990,1773079833782,-703.12663526,0.00016999,2]
[408054991,1773079833792,-703.12663526,0.00016999,2]
[408054992,1773079833801,-703.12663526,0.00016999,2]
[408054993,1773079833811,-703.12663526,0.00016999,2]
[408054994,1773079833821,-703.12663526,0.00016999,2]
[408054995,1773079833832,-703.12663526,0.00016999,2]
[408054996,1773079833841,-703.12663526,0.00016999,2]
[408054997,1773079833852,-156.22710637,0.00016999,2]
[408054998,1773079833862,-117009.70018909,0.00017,2]
[408054999,1773079833878,-8014.11029677,0.00017,2]
[408055000,1773079833906,-716.751795,0.00017,2]
[408055001,1773079833938,-349.05701941,0.00017,2]
[408055002,1773079833950,-2364.61060515,0.00017,2]
[408055009,1773079837481,-40186.97358672,0.00017,2]
[408055010,1773079837491,-1103.97427521,0.00017,2]
[408055011,1773079837500,-502.0,0.00017,2]
[408055012,1773079837510,-830.87,0.00017032,2]
[408055013,1773079837520,-8061.18213807,0.000171,2]
[408055014,1773079837532,-252.81297595,0.000171,2]
[408055015,1773079837692,-1260.0,0.00017,2]
[408055018,1773079837705,-956.485885,0.00017,2]
[408055226,1773079839636,-343.024,0.00017,2]
[408055230,1773079839648,-2316.21,0.00017,2]
[408055255,1773079839849,-41933.8181598,0.00017,2]
[408055257,1773079839858,-54243.60633042,0.000171,2]
[408055259,1773079839868,-197.40615546,0.00017188,2]
[408055261,1773079839877,-166.66,0.00017288,2]
[408055263,1773079839886,-1103.97427518,0.00017322,2]
[408055265,1773079839896,-830.87,0.00017493,2]
[408055267,1773079839905,-166.66,0.00017624,2]
[408055269,1773079839914,-1103.97427518,0.00017644,2]
[408055271,1773079839924,-150.64,0.000179,2]
[408055273,1773079839933,-587.0,0.00017966,2]
[408055275,1773079839942,-1103.97427518,0.00017967,2]
[408055277,1773079839951,-1852.42,0.00018042,2]
[408055279,1773079839960,-1000.0,0.00018099,2]
[408055281,1773079839969,-4521.05802331,0.00018126,2]
[408055283,1773079839979,-2351.0,0.00018149,2]
[408055285,1773079839988,-2000.0,0.00018196,2]
[408055287,1773079839997,-948.47,0.00018226,2]
[408055289,1773079840007,-722.0,0.00018281,2]
[408055291,1773079840016,-1103.97427518,0.00018289,2]
[408055293,1773079840025,-702.63,0.00018306,2]
[408055295,1773079840034,-4521.05802323,0.00018323,2]
[408055297,1773079840044,-500.0,0.00018356,7]
[408055299,1773079840053,-500.0,0.00018356,7]
[408055301,1773079840063,-500.0,0.00018356,7]
[408055304,1773079840076,-156.01,0.00018362,2]
[408055306,1773079840085,-847.0,0.000184,2]
[408055308,1773079840096,-779.7,0.00018487,2]
[408055310,1773079840105,-150.0,0.00018514,2]
[408055312,1773079840114,-4521.05802323,0.0001852,2]
[408055314,1773079840125,-61148.15,0.00018539,2]
[408055316,1773079840135,-197.40615544,0.00018544,2]
[408055318,1773079840144,-1103.97427518,0.00018611,2]
[408055320,1773079840159,-502.0,0.00018703,3]
[408055322,1773079840168,-4521.05802323,0.00018717,2]
[408055324,1773079840178,-174.61919141,0.00018841,2]
[408055326,1773079840187,-1000.0,0.00018841,2]
[408055328,1773079840199,-322.0,0.00018846,2]
[408055330,1773079840208,-152.81,0.00018906,2]
[408055332,1773079840217,-4521.05802323,0.00018914,2]
[408055334,1773079840229,-1103.97427518,0.00018933,2]
[408055337,1773079840239,-320.48659154,0.00019014,2]
[408055339,1773079840250,-1500.0,0.00019033,2]
[408055341,1773079840259,-501.19190549,0.00019038,2]
[408055343,1773079840269,-320.48659154,0.00019068,2]
[408055345,1773079840280,-500.0,0.00019068,2]
[408055347,1773079840290,-322.0,0.0001911,2]
[408055349,1773079840300,-4521.05802323,0.00019112,2]
[408055351,1773079840309,-320.48659154,0.00019151,2]
[408055353,1773079840319,-10444.6197204,0.00019171,2]
[408055355,1773079840328,-695.2,0.00019178,2]
[408055357,1773079840338,-1000.0,0.00019178,2]
[408055360,1773079840347,-54197.817,0.00019233,2]
[408055362,1773079840356,-320.48659154,0.00019233,2]
[408055364,1773079840366,-1103.97427518,0.00019256,2]
[408055366,1773079840375,-4521.05802323,0.00019309,2]
[408055368,1773079840384,-320.48659154,0.00019315,2]
[408055370,1773079840394,-3626.02059776,0.00019317,4]
[408055372,1773079840403,-320.48659154,0.0001937,2]
[408055374,1773079840413,-168.0,0.00019379,2]
[408055376,1773079840422,-322.0,0.00019383,2]
[408055378,1773079840431,-182.07748404,0.00019389,2]
[408055380,1773079840441,-1000.0,0.00019389,2]
[408055382,1773079840449,-400.0,0.00019433,2]
[408055385,1773079840462,-500.0,0.00019452,7]
[408055387,1773079840471,-250.0,0.00019452,2]
[408055389,1773079840480,-320.48659154,0.00019452,2]
[408055391,1773079840489,-1000.0,0.00019452,2]
[408055393,1773079840499,-1042.0,0.00019462,2]
[408055395,1773079840509,-3505.0,0.00019462,2]
[408055397,1773079840518,-619.0,0.00019462,2]
[408055399,1773079840528,-1279.0,0.00019462,2]
[408055401,1773079840537,-2461.0,0.00019463,2]
[408055403,1773079840546,-369.179,0.00019463,2]
[408055405,1773079840556,-250.0,0.00019496,2]
[408055407,1773079840565,-4521.05802323,0.00019506,2]
[408055409,1773079840575,-320.48659154,0.00019534,2]
[408055411,1773079840584,-250.0,0.00019547,2]
[408055413,1773079840593,-241.0,0.00019562,2]
[408055415,1773079840603,-1103.97427518,0.00019578,2]
[408055417,1773079840613,-250.0,0.000196,2]
[408055419,1773079840622,-669.84783956,0.000196,2]
[408055421,1773079840631,-241.0,0.00019602,2]
[408055423,1773079840641,-320.48659154,0.00019616,2]
[408055426,1773079840650,-241.0,0.00019642,2]
[408055428,1773079840659,-2330.5096709,0.00019655,2]
[408055430,1773079840669,-823.0,0.00019663,2]
[408055432,1773079840678,-550.0,0.0001967,5]
[408055434,1773079840687,-500.0,0.00019673,2]
[408055436,1773079840697,-150.0,0.00019673,2]
[408055438,1773079840706,-586.0,0.00019673,2]
[408055440,1773079840715,-500.0,0.00019673,2]
[408055443,1773079840733,-500.0,0.00019673,2]
[408055446,1773079840752,-150.0,0.00019673,2]
[408055449,1773079840770,-500.0,0.00019673,2]
[408055452,1773079840790,-500.0,0.00019673,2]
[408055455,1773079840806,-150.0,0.00019673,2]
[408055457,1773079840823,-500.0,0.00019673,2]
[408055461,1773079840842,-150.0,0.00019673,2]
[408055463,1773079840860,-150.0,0.00019673,2]
[408055467,1773079840878,-842.0,0.00019673,2]
[408055470,1773079840897,-525.0,0.00019673,2]
[408055473,1773079840918,-500.0,0.00019673,2]
[408055476,1773079840935,-500.0,0.00019673,2]
[408055479,1773079840950,-500.0,0.00019673,2]
[408055481,1773079840966,-150.0,0.00019673,2]
[408055484,1773079840980,-150.0,0.00019673,2]
[408055487,1773079840998,-150.0,0.00019673,2]
[408055489,1773079841010,-186.99459924,0.00019673,2]
[408055493,1773079841040,-500.0,0.00019673,2]
[408055496,1773079841056,-500.0,0.00019673,2]
[408055499,1773079841072,-241.0,0.00019681,2]
[408055502,1773079841089,-250.0,0.00019684,2]
[408055504,1773079841105,-320.48659154,0.00019699,2]
[408055507,1773079841121,-2000.0,0.000197,2]
[408055510,1773079841136,-217.94309222,0.000197,2]
[408055513,1773079841153,-4521.05802323,0.00019703,2]
[408055515,1773079841170,-241.0,0.00019721,2]
[408055518,1773079841186,-250.0,0.00019726,2]
[408055521,1773079841201,-1000.0,0.00019726,2]
[408055523,1773079841216,-500.0,0.00019728,2]
[408055526,1773079841233,-150.0,0.00019728,2]
[408055529,1773079841248,-586.0,0.00019728,2]
[408055532,1773079841263,-500.0,0.00019728,2]
[408055534,1773079841278,-500.0,0.00019728,2]
[408055537,1773079841293,-150.0,0.00019728,2]
[408055540,1773079841307,-500.0,0.00019728,2]
[408055542,1773079841322,-500.0,0.00019728,2]
[408055545,1773079841337,-150.0,0.00019728,2]
[408055548,1773079841352,-500.0,0.00019728,2]
[408055550,1773079841367,-253.29632904,0.00019728,2]
[408055551,1773079841382,-842.0,0.00019728,2]
[408055552,1773079841398,-150.0,0.00019728,2]
[408055553,1773079841413,-525.0,0.00019728,2]
[408055554,1773079841428,-500.0,0.00019728,2]
[408055555,1773079841443,-500.0,0.00019728,2]
[408055556,1773079841456,-500.0,0.00019728,2]
[408055557,1773079841474,-150.0,0.00019728,2]
[408055558,1773079841490,-150.0,0.00019728,2]
[408055560,1773079841505,-500.0,0.00019728,2]
[408055562,1773079841520,-500.0,0.00019728,2]
[408055564,1773079841535,-250.0,0.00019748,2]
[408055567,1773079841550,-320.48659154,0.00019753,2]
[408055569,1773079841564,-241.0,0.00019761,2]
[408055572,1773079841578,-544.737577,0.00019783,2]
[408055574,1773079841594,-150.0,0.00019783,2]
[408055577,1773079841609,-586.0,0.00019783,2]
[408055580,1773079841623,-500.0,0.00019783,2]
[408055582,1773079841638,-551.70358089,0.00019783,2]
[408055585,1773079841652,-150.0,0.00019783,2]
[408055587,1773079841667,-500.0,0.00019783,2]
[408055590,1773079841681,-500.0,0.00019783,2]
[408055593,1773079841696,-150.0,0.00019783,2]
[408055595,1773079841710,-500.0,0.00019783,2]
[408055598,1773079841725,-842.0,0.00019783,2]
[408055600,1773079841740,-200.0,0.00019783,2]
[408055603,1773079841755,-525.0,0.00019783,2]
[408055605,1773079841770,-500.0,0.00019783,2]
[408055608,1773079841783,-500.0,0.00019783,2]
[408055611,1773079841798,-500.0,0.00019783,2]
[408055613,1773079841812,-261.02563779,0.00019783,2]
[408055616,1773079841826,-150.0,0.00019783,2]
[408055618,1773079841841,-407.93036646,0.00019783,2]
[408055621,1773079841856,-500.0,0.00019783,2]
[408055624,1773079841871,-250.0,0.00019783,2]
[408055626,1773079841885,-243.85775768,0.00019799,2]
[408055629,1773079841899,-599.05372869,0.00019799,2]
[408055631,1773079841913,-32927.6463,0.000198,2]
[408055634,1773079841927,-100000.0,0.000198,2]
[408055636,1773079841942,-100000.0,0.000198,2]
[408055639,1773079841956,-71749.60770522,0.000198,2]
[408055641,1773079841971,-2000.0,0.000198,2]
[408055644,1773079841985,-2000.0,0.000198,2]
[408055647,1773079841999,-250.0,0.000198,2]
[408055649,1773079842013,-241.0,0.00019801,2]
[408055652,1773079842028,-1000.0,0.00019823,2]
[408055654,1773079842043,-3084.892,0.00019833,2]
[408055657,1773079842057,-173.515,0.00019833,2]
[408055659,1773079842072,-250.0,0.00019833,2]
[408055662,1773079842086,-500.0,0.00019835,2]
[408055664,1773079842101,-500.0,0.00019835,2]
[408055667,1773079842118,-500.0,0.00019835,2]
[408055670,1773079842133,-560.81371769,0.00019835,2]
[408055672,1773079842147,-500.0,0.00019835,2]
[408055675,1773079842166,-500.0,0.00019835,2]
[408055678,1773079842181,-500.0,0.00019835,2]
[408055680,1773079842197,-500.0,0.00019835,2]
[408055683,1773079842211,-500.0,0.00019835,2]
[408055685,1773079842228,-320.48659154,0.00019836,2]
[408055688,1773079842243,-150.0,0.00019837,2]
[408055691,1773079842258,-586.0,0.00019837,2]
[408055693,1773079842273,-500.0,0.00019837,2]
[408055696,1773079842288,-150.0,0.00019837,2]
[408055698,1773079842303,-500.0,0.00019837,2]
[408055701,1773079842318,-150.0,0.00019837,2]
[408055704,1773079842333,-500.0,0.00019837,2]
[408055706,1773079842347,-842.0,0.00019837,2]
[408055709,1773079842362,-525.0,0.00019837,2]
[408055711,1773079842377,-250.0,0.00019837,2]
[408055714,1773079842393,-500.0,0.00019837,2]
[408055717,1773079842407,-150.0,0.00019837,2]
[408055722,1773079842422,-500.0,0.00019837,2]
[408055730,1773079842436,-241.0,0.00019841,2]
[408055735,1773079842451,-179.0,0.00019844,2]
[408055737,1773079842466,-557.0,0.0001986,2]
[408055741,1773079842481,-1000.0,0.00019861,2]
[408055744,1773079842496,-250.0,0.00019863,2]
[408055747,1773079842511,-241.0,0.00019881,2]
[408055749,1773079842526,-150.0,0.00019892,2]
[408055752,1773079842539,-586.0,0.00019892,2]
[408055755,1773079842554,-500.0,0.00019892,2]
[408055758,1773079842569,-160.57620522,0.00019892,2]
[408055762,1773079842584,-500.0,0.00019892,2]
[408055764,1773079842600,-150.0,0.00019892,2]
[408055767,1773079842615,-500.0,0.00019892,2]
[408055770,1773079842630,-842.0,0.00019892,2]
[408055772,1773079842645,-525.0,0.00019892,2]
[408055775,1773079842659,-500.0,0.00019892,2]
[408055778,1773079842674,-150.0,0.00019892,2]
[408055780,1773079842690,-500.0,0.00019892,2]
[408055783,1773079842704,-153.15462612,0.000199,3]
[408055822,1773079842719,-2523.05736046,0.000199,2]
[408055829,1773079843059,-250.0,0.000199,2]
[408055831,1773079843073,-1103.97427518,0.000199,2]
[408055833,1773079843082,-4521.05802323,0.000199,2]
[408055835,1773079843091,-935.13255853,0.000199,2]
[408055837,1773079843102,-189.1597078,0.000199,2]
[408055839,1773079843111,-217.94309222,0.000199,2]
[408055841,1773079843120,-241.0,0.0001992,2]
[408055843,1773079843130,-1000.0,0.00019937,2]
[408055845,1773079843139,-250.0,0.00019947,2]
[408055847,1773079843150,-586.0,0.00019947,2]
[408055849,1773079843161,-500.0,0.00019947,2]
[408055851,1773079843171,-500.0,0.00019947,2]
[408055853,1773079843180,-250.0,0.00019947,2]
[408055855,1773079843192,-500.0,0.00019947,2]
[408055857,1773079843202,-842.0,0.00019947,2]
[408055859,1773079843210,-525.0,0.00019947,2]
[408055861,1773079843220,-250.0,0.00019947,2]
[408055863,1773079843229,-500.0,0.00019947,2]
[408055865,1773079843239,-250.0,0.00019947,2]
[408055867,1773079843249,-973.0,0.00019951,2]
[408055869,1773079843259,-1560.41,0.00019951,2]
[408055871,1773079843269,-241.0,0.0001996,2]
[408055873,1773079843278,-150.0,0.00019963,2]
[408055875,1773079843287,-200.0,0.00019963,2]
[408055877,1773079843296,-222.675,0.00019963,2]
[408055879,1773079843306,-250.0,0.00019963,2]
[408055881,1773079843317,-219.836,0.00019963,2]
[408055883,1773079843327,-161.49,0.00019963,2]
[408055885,1773079843335,-250.0,0.00019963,2]
[408055886,1773079843345,-150.139,0.00019963,2]
[408055888,1773079843354,-192.833,0.00019963,2]
[408055891,1773079843365,-165.46,0.00019963,2]
[408055892,1773079843379,-214.125,0.00019963,2]
[408055894,1773079843388,-250.0,0.00019963,2]
[408055896,1773079843397,-177.0,0.00019963,2]
[408055898,1773079843406,-236.839,0.00019963,2]
[408055900,1773079843415,-250.0,0.00019963,2]
[408055902,1773079843424,-2941.0,0.00019964,2]
[408055904,1773079843433,-501.46144244,0.00019973,2]
[408055906,1773079843442,-500.0,0.00019973,2]
[408055908,1773079843451,-3739.5368392,0.00019991,2]
[408055910,1773079843460,-35736.0486413,0.00019991,2]
[408055912,1773079843469,-500.0,0.00019998,2]
[408055914,1773079843478,-500.0,0.00019998,2]
[408055916,1773079843486,-500.0,0.00019998,2]
[408055918,1773079843495,-500.0,0.00019998,2]
[408055920,1773079843504,-964.06793134,0.00019999,2]
[408055922,1773079843514,-300.0,0.00019999,2]
[408055924,1773079843526,-156.17,0.00019999,2]
[408055926,1773079843534,-500.0,0.00019999,2]
[408055928,1773079843544,-500.0,0.00019999,2]
[408055930,1773079843553,-500.0,0.00019999,2]
[408055932,1773079843561,-500.0,0.00019999,2]
[408055934,1773079843571,-500.0,0.00019999,2]
[408055936,1773079843580,-500.0,0.00019999,2]
[408055938,1773079843589,-500.0,0.00019999,2]
[408055940,1773079843598,-500.0,0.00019999,2]
[408055942,1773079843607,-500.0,0.00019999,2]
[408055944,1773079843616,-500.0,0.00019999,2]
[408055946,1773079843625,-500.0,0.00019999,2]
[408055948,1773079843633,-500.0,0.00019999,2]
[408055949,1773079843642,-500.0,0.00019999,2]
[408055951,1773079843651,-500.0,0.00019999,2]
[408055953,1773079843660,-500.0,0.00019999,2]
[408055955,1773079843671,-500.0,0.00019999,2]
[408055957,1773079843680,-500.0,0.00019999,2]
[408055959,1773079843689,-500.0,0.00019999,2]
[408055961,1773079843698,-500.0,0.00019999,2]
[408055963,1773079843707,-484.28,0.00019999,2]
[408055965,1773079843716,-500.0,0.00019999,2]
[408055967,1773079843726,-289.3873478,0.00019999,2]
[408055969,1773079843735,-1212.0,0.0002,2]
[408055971,1773079843745,-245767.13536876,0.0002,2]
[408056024,1773079844496,-6849.59165372,0.0002,2]
[408056027,1773079844514,-3300.0,0.0002,2]
[408056039,1773079844620,-1405.95573228,0.0002,2]
[408056168,1773079846419,-197.40615544,0.000199,2]
[408056170,1773079846428,-13788.46293184,0.0002,2]
[408056205,1773079878349,250.0,0.00015,2]
[408056206,1773079937418,500.0,0.0001,2]
[408056207,1773079937948,764.99473768,0.0001,2]
[408056208,1773079939737,500.0,0.0001,2]
[408056209,1773079940280,666.9718326,0.0001,2]
[408056211,1773079997216,175.69,0.00014,2]
[408056212,1773080054974,-882.535064,0.00014925,2]
[408056213,1773080055003,-500.0,0.00015,30]
[408056214,1773080055032,-500.0,0.00015,30]
[408056215,1773080055062,-968.69412371,0.00015,30]
[408056216,1773080055095,-783.75832895,0.00015,30]
[408056217,1773080055124,-500.0,0.00015,30]
[408056218,1773080055153,-500.0,0.00015,30]
[408056219,1773080055208,-230.03496668,0.00015,30]
[408056220,1773080058237,-269.96503332,0.00015,30]
[408056221,1773080058267,-500.0,0.00015,30]
[408056222,1773080255306,5533.0,0.00015,5]
[408056228,1773081031634,-1668.95,0.00014853,2]
[408056229,1773081031644,-500.0,0.000151,2]
[408056230,1773081031654,-2088.67,0.00015739,2]
[408056231,1773081031664,-1000.0,0.00016599,2]
[408056232,1773081031673,-1200.0,0.00016599,2]
[408056233,1773081031682,-78716.56902257,0.000166,2]
[408056234,1773081031691,-152.0,0.0001684,3]
[408056235,1773081031701,-300.0,0.00017,2]
[408056236,1773081031711,-502.0,0.00017,2]
[408056237,1773081031720,-964.06793134,0.0001783,2]
[408056238,1773081031730,-500.0,0.0001789,2]
[408056239,1773081031742,-342.67274879,0.000179,2]
[408056240,1773081031752,-342.67274878,0.000179,2]
[408056241,1773081031762,-722.0,0.00017924,2]
[408056242,1773081031772,-152.0,0.00018033,4]
[408056243,1773081031781,-174.61919142,0.00018049,2]
[408056244,1773081031791,-1500.0,0.00018049,2]
[408056245,1773081031801,-1500.0,0.00018049,2]
[408056246,1773081031810,-588.53467861,0.00018049,2]
[408056247,1773081031819,-1680.0,0.00018228,2]
[408056248,1773081031828,-1000.0,0.00018346,2]
[408056249,1773081031838,-1600.0,0.00018355,2]
[408056250,1773081031848,-500.0,0.00018356,7]
[408056252,1773081031858,-500.0,0.00018356,7]
[408056254,1773081031867,-500.0,0.00018356,7]
[408056256,1773081031876,-1767.74,0.00018459,2]
[408056258,1773081031885,-500.0,0.00018482,2]
[408056260,1773081031895,-164.9,0.00018489,2]
[408056262,1773081031904,-4820.12542113,0.00018513,2]
[408056263,1773081031912,-500.0,0.00018514,2]
[408056264,1773081031922,-200.0,0.00018514,2]
[408056265,1773081031931,-2000.0,0.00018518,2]
[408056266,1773081031940,-1387.95,0.00018575,2]
[408056267,1773081031949,-559.17,0.00018694,2]
[408056268,1773081031959,-502.0,0.00018703,3]
[408056269,1773081031968,-501.19190549,0.00018747,2]
[408056270,1773081031978,-200.0,0.00018766,2]
[408056271,1773081031987,-183.71,0.00018867,3]
[408056272,1773081031996,-1000.0,0.00018894,2]
[408056273,1773081032009,-166.66,0.00018906,2]
[408056274,1773081032018,-155.38743832,0.00019014,2]
[408056275,1773081032028,-204.75532238,0.00019014,2]
[408056276,1773081032037,-204.75532237,0.00019014,2]
[408056277,1773081032047,-169.14570109,0.00019014,2]
[408056278,1773081032056,-160.24329578,0.00019014,2]
[408056279,1773081032066,-160.24329577,0.00019014,2]
[408056280,1773081032075,-1387.95,0.00019039,2]
[408056281,1773081032084,-204.75532238,0.00019068,2]
[408056282,1773081032094,-204.75532237,0.00019068,2]
[408056283,1773081032104,-169.14570109,0.00019068,2]
[408056284,1773081032114,-155.38743832,0.00019096,2]
[408056285,1773081032124,-204.75532238,0.00019151,2]
[408056286,1773081032133,-204.75532237,0.00019151,2]
[408056287,1773081032142,-169.14570109,0.00019151,2]
[408056288,1773081032152,-155.38743832,0.00019178,2]
[408056289,1773081032162,-160.24329577,0.00019178,2]
[408056290,1773081032171,-1000.0,0.00019178,2]
[408056291,1773081032181,-192.51129899,0.00019188,2]
[408056292,1773081032190,-2000.0,0.000192,2]
[408056293,1773081032199,-309.0,0.00019205,2]
[408056294,1773081032209,-160.24329578,0.00019205,2]
[408056295,1773081032218,-1560.42,0.00019225,2]
[408056296,1773081032227,-152.0,0.00019226,5]
[408056297,1773081032236,-204.75532238,0.00019233,2]
[408056298,1773081032245,-204.75532237,0.00019233,2]
[408056299,1773081032255,-169.14570109,0.00019233,2]
[408056300,1773081032264,-155.38743832,0.0001926,2]
[408056301,1773081032274,-204.75532238,0.00019315,2]
[408056302,1773081032283,-204.75532237,0.00019315,2]
[408056303,1773081032292,-169.14570109,0.00019315,2]
[408056304,1773081032302,-155.38743832,0.00019342,2]
[408056305,1773081032311,-160.24329577,0.00019342,2]
[408056306,1773081032320,-847.0,0.0001936,2]
[408056307,1773081032329,-852.0,0.0001936,2]
[408056308,1773081032338,-204.75532238,0.0001937,2]
[408056309,1773081032347,-204.75532237,0.0001937,2]
[408056310,1773081032357,-169.14570109,0.0001937,2]
[408056311,1773081032367,-1767.74,0.00019382,2]
[408056312,1773081032376,-155.38743832,0.00019425,2]
[408056313,1773081032386,-160.24329578,0.00019425,2]
[408056314,1773081032395,-1000.0,0.00019442,2]
[408056315,1773081032405,-500.0,0.00019452,7]
[408056316,1773081032414,-204.75532238,0.00019452,2]
[408056317,1773081032423,-204.75532237,0.00019452,2]
[408056318,1773081032433,-169.14570109,0.00019452,2]
[408056319,1773081032442,-1000.0,0.00019452,2]
[408056320,1773081032452,-350.0,0.00019461,2]
[408056321,1773081032461,-1387.95,0.00019503,2]
[408056322,1773081032471,-155.38743832,0.00019507,2]
[408056323,1773081032480,-160.24329577,0.00019507,2]
[408056324,1773081032490,-166.66,0.0001953,2]
[408056325,1773081032499,-305.99,0.00019534,2]
[408056326,1773081032509,-204.75532238,0.00019534,2]
[408056327,1773081032521,-57.56691378,0.00019534,2]
[408056328,1773081032537,-147.18840859,0.00019534,2]
[408056329,1773081032547,-169.14570109,0.00019534,2]
[408056330,1773081032557,-241.0,0.00019553,2]
[408056331,1773081032567,-250.0,0.00019562,2]
[408056332,1773081032577,-168.0,0.00019563,2]
[408056333,1773081032587,-2717.80717606,0.00019573,2]
[408056334,1773081032597,-250.0,0.00019578,2]
[408056335,1773081032608,-244.18846942,0.00019579,2]
[408056336,1773081032618,-155.38743832,0.00019589,2]
[408056337,1773081032627,-241.0,0.00019594,2]
[408056338,1773081032636,-669.84783956,0.000196,2]
[408056339,1773081032645,-2717.80717597,0.00019609,2]
[408056340,1773081032655,-30.52056008,0.00019616,2]
[408056341,1773081032666,-219.47943992,0.00019616,2]
[408056342,1773081032675,-204.75532238,0.00019616,2]
[408056343,1773081032685,-181.3752568,0.00019616,2]
[408056344,1773081032697,-23.38006557,0.00019616,2]
[408056345,1773081032706,-169.14570109,0.00019616,2]
[408056346,1773081032716,-160.24329578,0.00019616,2]
[408056347,1773081032726,-452.70136904,0.00019628,2]
[408056348,1773081032737,-2645.50928177,0.00019628,2]
[408056349,1773081032748,-2645.99592063,0.00019628,2]
[408056350,1773081032781,-333.9497925,0.00019628,2]
[408056351,1773081032815,-1132.53506354,0.00019628,2]
[408056352,1773081032827,-3599.24667252,0.00019628,2]
[408056353,1773081032836,-241.0,0.00019634,2]
[408056354,1773081032846,-250.0,0.00019655,2]
[408056355,1773081032855,-91.80019416,0.0001967,5]
[408056372,1773081038370,-2717.80717597,0.00019646,2]
[408056373,1773081038379,-155.38743832,0.00019671,2]
[408056374,1773081038388,-160.24329577,0.00019671,2]
[408056375,1773081038398,-150.0,0.00019673,2]
[408056376,1773081038407,-389.4321839,0.00019673,2]
[408056377,1773081038418,-110.5678161,0.00019673,2]
[408056378,1773081038427,-513.0,0.00019673,2]
[408056379,1773081038437,-500.0,0.00019673,2]
[408056380,1773081038446,-150.0,0.00019673,2]
[408056381,1773081038455,-150.0,0.00019673,2]
[408056382,1773081038464,-150.0,0.00019673,2]